fUST/lending_fUST_20250119
["ID","MTS","AMOUNT","RATE_DAILY","PERIOD"]
[349523310,1737276652411,-313.40434,0.00023424,7]
[349523311,1737276652420,-7007.89,0.00023424,3]
[349523312,1737276652429,-609.18,0.00023424,3]
[349523313,1737276652438,-654.3,0.00023424,3]
[349523314,1737276652447,-500.0,0.00023424,3]
[349523315,1737276652457,-500.0,0.00023424,3]
[349523316,1737276652466,-2037.63,0.00023424,3]
[349523317,1737276652475,-500.0,0.00023424,3]
[349523318,1737276652485,-517.3,0.00023424,3]
[349523319,1737276652495,-500.0,0.00023424,3]
[349523320,1737276652505,-500.0,0.00023424,3]
[349523321,1737276652515,-1493.86,0.00023424,3]
[349523322,1737276652526,-1252.86,0.00023424,3]
[349523323,1737276652536,-1518.29,0.00023424,3]
[349523324,1737276652546,-3619.47,0.00023424,3]
[349523325,1737276652555,-500.0,0.00023434,2]
[349523326,1737276652565,-500.0,0.00023434,2]
[349523327,1737276652575,-500.0,0.00023434,2]
[349523328,1737276652584,-329.56003376,0.00023434,2]
[349523329,1737276652593,-624.88714513,0.00023434,2]
[349523330,1737276652602,-500.0,0.00023434,2]
[349523331,1737276652612,-501.37180093,0.00023434,2]
[349523332,1737276652621,-2845.23479617,0.00023452,3]
[349523333,1737276652630,-151.0,0.00023452,7]
[349523334,1737276652640,-280.0,0.0002348,10]
[349523335,1737276652650,-151.0,0.000235,7]
[349523336,1737276652659,-389.0,0.000235,10]
[349523337,1737276652669,-573.48285711,0.00023503,2]
[349523338,1737276652678,-2845.23479617,0.00023521,3]
[349523339,1737276652687,-151.0,0.00023521,7]
[349523340,1737276652696,-178.721499,0.00023521,7]
[349523341,1737276652706,-174.915575,0.00023561,7]
[349523342,1737276652714,-174.915575,0.00023561,7]
[349523343,1737276652724,-1424.38,0.00023561,3]
[349523344,1737276652733,-500.0,0.00023561,3]
[349523345,1737276652742,-501.82375421,0.00023561,3]
[349523346,1737276652751,-500.0,0.00023561,3]
[349523347,1737276652761,-151.0,0.00023561,7]
[349523348,1737276652773,-500.0,0.00023561,3]
[349523349,1737276652782,-151.0,0.00023561,7]
[349523350,1737276652792,-441.92863,0.00023561,7]
[349523351,1737276652802,-814.87,0.00023561,3]
[349523352,1737276652811,-504.56,0.00023561,3]
[349523353,1737276652820,-151.0,0.00023561,7]
[349523354,1737276652829,-500.0,0.00023561,3]
[349523355,1737276652839,-519.464589,0.00023561,7]
[349523356,1737276652848,-519.46458,0.00023561,7]
[349523357,1737276652858,-151.0,0.00023561,2]
[349523358,1737276652867,-500.0,0.00023561,3]
[349523359,1737276652876,-8636.63,0.00023561,3]
[349523360,1737276652885,-510.91,0.00023561,3]
[349523361,1737276652895,-528.29,0.00023561,3]
[349523362,1737276652904,-500.0,0.00023561,2]
[349523363,1737276652914,-3622.64,0.00023561,3]
[349523364,1737276652923,-1968.82,0.00023561,3]
[349523365,1737276652936,-19113.93,0.00023561,3]
[349523366,1737276652946,-897.77,0.00023561,3]
[349523367,1737276652955,-1004.02,0.00023561,3]
[349523368,1737276652964,-500.0,0.00023561,3]
[349523369,1737276652973,-549.97,0.00023561,3]
[349523370,1737276652982,-792.3,0.00023561,3]
[349523371,1737276652991,-500.0,0.00023561,3]
[349523372,1737276653000,-13109.04,0.00023561,3]
[349523373,1737276653009,-1398.85,0.00023561,3]
[349523374,1737276653019,-585.24,0.00023561,3]
[349523375,1737276653029,-793.92,0.00023561,3]
[349523376,1737276653038,-1699.44,0.00023561,3]
[349523377,1737276653048,-4420.41,0.00023561,3]
[349523378,1737276653057,-254.97,0.00023561,3]
[349523379,1737276653067,-7007.89,0.00023561,3]
[349523380,1737276653076,-609.18,0.00023561,3]
[349523381,1737276653085,-654.3,0.00023561,3]
[349523382,1737276653094,-500.0,0.00023561,3]
[349523383,1737276653103,-500.0,0.00023561,3]
[349523384,1737276653113,-2037.63,0.00023561,3]
[349523385,1737276653122,-500.0,0.00023561,3]
[349523386,1737276653131,-517.3,0.00023561,3]
[349523387,1737276653140,-500.0,0.00023561,3]
[349523388,1737276653149,-500.0,0.00023561,3]
[349523389,1737276653161,-1493.86,0.00023561,3]
[349523390,1737276653170,-1252.86,0.00023561,3]
[349523391,1737276653179,-1518.29,0.00023561,3]
[349523392,1737276653189,-3619.47,0.00023561,3]
[349523393,1737276653199,-500.0,0.00023562,2]
[349523394,1737276653207,-1200.0,0.00023571,2]
[349523395,1737276653217,-297.177,0.00023571,2]
[349523396,1737276653226,-2845.23479617,0.0002359,3]
[349523397,1737276653236,-978.25925374,0.00023622,2]
[349523398,1737276653245,-573.48285711,0.00023649,2]
[349523399,1737276653255,-2845.23479617,0.00023659,3]
[349523400,1737276653263,-151.0,0.00023698,7]
[349523401,1737276653276,-151.0,0.00023698,7]
[349523402,1737276653286,-151.0,0.00023698,7]
[349523403,1737276653295,-1424.38,0.00023698,3]
[349523404,1737276653305,-175.2177991,0.00023698,3]
[349523405,1737276653314,-500.0,0.00023698,3]
[349523406,1737276653323,-500.0,0.00023698,3]
[349523407,1737276653333,-814.87,0.00023698,3]
[349523408,1737276653342,-504.56,0.00023698,3]
[349523409,1737276653351,-500.0,0.00023698,3]
[349523410,1737276653361,-500.0,0.00023698,3]
[349523411,1737276653370,-8636.63,0.00023698,3]
[349523412,1737276653379,-510.91,0.00023698,3]
[349523413,1737276653389,-528.29,0.00023698,3]
[349523414,1737276653399,-500.0,0.00023698,2]
[349523415,1737276653408,-3622.64,0.00023698,3]
[349523416,1737276653417,-1968.82,0.00023698,3]
[349523417,1737276653427,-19113.93,0.00023698,3]
[349523418,1737276653437,-897.77,0.00023698,3]
[349523419,1737276653446,-1004.02,0.00023698,3]
[349523420,1737276653455,-500.0,0.00023698,3]
[349523421,1737276653520,-549.97,0.00023698,3]
[349523422,1737276653530,-792.3,0.00023698,3]
[349523423,1737276653540,-500.0,0.00023698,3]
[349523424,1737276653549,-13109.04,0.00023698,3]
[349523425,1737276653558,-1398.85,0.00023698,3]
[349523426,1737276653568,-585.24,0.00023698,3]
[349523427,1737276653578,-793.92,0.00023698,3]
[349523428,1737276653587,-1699.44,0.00023698,3]
[349523429,1737276653596,-4420.41,0.00023698,3]
[349523430,1737276653606,-7007.89,0.00023698,3]
[349523431,1737276653615,-609.18,0.00023698,3]
[349523432,1737276653624,-654.3,0.00023698,3]
[349523433,1737276653633,-500.0,0.00023698,3]
[349523434,1737276653643,-274.34,0.00023698,3]
[349523435,1737276653652,-2037.63,0.00023698,3]
[349523436,1737276653661,-419.42282519,0.00023698,3]
[349523437,1737276653670,-517.3,0.00023698,3]
[349523438,1737276653680,-500.0,0.00023698,3]
[349523439,1737276653689,-500.0,0.00023698,3]
[349523440,1737276653699,-1493.86,0.00023698,3]
[349523441,1737276653708,-1252.86,0.00023698,3]
[349523442,1737276653717,-1518.29,0.00023698,3]
[349523443,1737276653727,-151.0,0.000237,6]
[349523444,1737276653738,-587.0,0.00023712,2]
[349523445,1737276653747,-925.29243957,0.00023722,2]
[349523446,1737276653756,-2845.23479617,0.00023728,3]
[349523447,1737276653766,-500.75776866,0.00023739,2]
[349523448,1737276653780,-151.0,0.00023758,7]
[349523449,1737276653789,-573.48285711,0.00023794,2]
[349523450,1737276653799,-2845.23479617,0.00023797,3]
[349523451,1737276653808,-1000.0,0.000238,5]
[349523452,1737276653817,-1000.0,0.000238,6]
[349523453,1737276653828,-1014.5,0.000238,30]
[349523454,1737276653838,-22556.50618562,0.00023832,2]
[349523455,1737276653847,-174.915575,0.00023835,7]
[349523456,1737276653856,-174.915575,0.00023835,7]
[349523457,1737276653865,-1424.38,0.00023835,3]
[349523458,1737276653874,-500.0,0.00023835,3]
[349523459,1737276653883,-500.0,0.00023835,3]
[349523460,1737276653892,-814.87,0.00023835,3]
[349523461,1737276653901,-504.56,0.00023835,3]
[349523462,1737276653910,-500.0,0.00023835,3]
[349523463,1737276653919,-500.0,0.00023835,3]
[349523464,1737276653928,-8636.63,0.00023835,3]
[349523465,1737276653937,-510.91,0.00023835,3]
[349523466,1737276653946,-528.29,0.00023835,3]
[349523467,1737276653956,-500.0,0.00023835,2]
[349523468,1737276653965,-3622.64,0.00023835,3]
[349523469,1737276653974,-1968.82,0.00023835,3]
[349523470,1737276653983,-19113.93,0.00023835,3]
[349523471,1737276653992,-897.77,0.00023835,3]
[349523472,1737276654001,-1004.02,0.00023835,3]
[349523473,1737276654011,-500.0,0.00023835,3]
[349523474,1737276654032,-549.97,0.00023835,3]
[349523475,1737276654050,-792.3,0.00023835,3]
[349523476,1737276654066,-221.34,0.00023835,3]
[349523477,1737276654084,-13109.04,0.00023835,3]
[349523478,1737276654102,-1398.85,0.00023835,3]
[349523479,1737276654119,-585.24,0.00023835,3]
[349523480,1737276654135,-793.92,0.00023835,3]
[349523481,1737276654154,-1699.44,0.00023835,3]
[349523482,1737276654171,-4420.41,0.00023835,3]
[349523483,1737276654184,-7007.89,0.00023835,3]
[349523484,1737276654203,-609.18,0.00023835,3]
[349523485,1737276654220,-654.3,0.00023835,3]
[349523486,1737276654238,-500.0,0.00023835,3]
[349523487,1737276654251,-2037.63,0.00023835,3]
[349523488,1737276654263,-517.3,0.00023835,3]
[349523489,1737276654285,-292.31,0.00023835,3]
[349523490,1737276654297,-500.0,0.00023835,3]
[349523491,1737276654312,-1493.86,0.00023835,3]
[349523492,1737276654325,-1252.86,0.00023835,3]
[349523493,1737276654338,-1518.29,0.00023835,3]
[349523494,1737276654351,-2845.23479617,0.00023866,3]
[349523495,1737276654366,-886.01660708,0.000239,2]
[349523496,1737276654379,-155.47,0.000239,31]
[349523497,1737276654392,-155.47,0.000239,31]
[349523498,1737276654406,-155.47,0.000239,31]
[349523499,1737276654420,-155.47,0.000239,31]
[349523500,1737276654433,-155.47,0.000239,31]
[349523501,1737276654447,-155.47,0.000239,31]
[349523502,1737276654461,-1000.0,0.00023915,2]
[349523503,1737276654475,-2845.23479617,0.00023934,3]
[349523504,1737276654489,-573.48285711,0.0002394,2]
[349523505,1737276654502,-161.05674427,0.00023955,5]
[349523506,1737276654516,-151.0,0.00023972,7]
[349523507,1737276654530,-226.382628,0.00023972,7]
[349523508,1737276654545,-1424.38,0.00023972,3]
[349523509,1737276654559,-500.0,0.00023972,3]
[349523510,1737276654573,-500.0,0.00023972,3]
[349523511,1737276654586,-814.87,0.00023972,3]
[349523512,1737276654600,-504.56,0.00023972,3]
[349523513,1737276654610,-500.0,0.00023972,3]
[349523514,1737276654619,-500.0,0.00023972,3]
[349523515,1737276654629,-8636.63,0.00023972,3]
[349523516,1737276654638,-510.91,0.00023972,3]
[349523517,1737276654648,-528.29,0.00023972,3]
[349523518,1737276654658,-500.0,0.00023972,2]
[349523519,1737276654668,-3622.64,0.00023972,3]
[349523520,1737276654678,-1968.82,0.00023972,3]
[349523521,1737276654688,-19113.93,0.00023972,3]
[349523522,1737276654698,-897.77,0.00023972,3]
[349523523,1737276654707,-1004.02,0.00023972,3]
[349523524,1737276654717,-500.0,0.00023972,3]
[349523525,1737276654727,-549.97,0.00023972,3]
[349523526,1737276654736,-792.3,0.00023972,3]
[349523527,1737276654895,-13109.04,0.00023972,3]
[349523528,1737276654908,-1398.85,0.00023972,3]
[349523529,1737276654918,-585.24,0.00023972,3]
[349523530,1737276654929,-793.92,0.00023972,3]
[349523531,1737276654939,-1699.44,0.00023972,3]
[349523532,1737276654949,-4420.41,0.00023972,3]
[349523533,1737276654959,-7007.89,0.00023972,3]
[349523534,1737276654968,-609.18,0.00023972,3]
[349523535,1737276654979,-654.3,0.00023972,3]
[349523536,1737276654989,-500.0,0.00023972,3]
[349523537,1737276654998,-2037.63,0.00023972,3]
[349523538,1737276655008,-517.3,0.00023972,3]
[349523539,1737276655021,-500.0,0.00023972,3]
[349523540,1737276655031,-1493.86,0.00023972,3]
[349523541,1737276655040,-1252.86,0.00023972,3]
[349523542,1737276655050,-1518.29,0.00023972,3]
[349523543,1737276655060,-1068.12816177,0.00023982,2]
[349523544,1737276655069,-1000.0,0.00023982,2]
[349523545,1737276655079,-1000.0,0.00023982,2]
[349523546,1737276655089,-501.25387518,0.00023982,2]
[349523547,1737276655098,-1000.0,0.00023996,2]
[349523548,1737276655107,-1005.64749833,0.00023999,2]
[349523549,1737276655117,-1000.0,0.00024,24]
[349523550,1737276655126,-2000.0,0.00024,2]
[349523551,1737276655136,-211.77649342,0.00024,15]
[349523552,1737276655146,-188.0,0.00024,2]
[349523553,1737276655157,-14266.04,0.00024,2]
[349523554,1737276655168,-150.118667,0.00024,2]
[349523555,1737276655178,-7438.69753278,0.00024,7]
[349523556,1737276655187,-2845.23479617,0.00024003,3]
[349523557,1737276655197,-1000.0,0.00024033,2]
[349523558,1737276655206,-1067.84723605,0.0002405,2]
[349523559,1737276655216,-1000.0,0.00024051,2]
[349523560,1737276655225,-160.0,0.00024062,120]
[349523561,1737276655235,-160.0,0.00024065,120]
[349523562,1737276655244,-573.48285711,0.00024085,2]
[349523563,1737276655255,-925.29243957,0.00024085,2]
[349523564,1737276655265,-150.79460084,0.00024087,14]
[349523565,1737276655277,-500.0,0.00024087,14]
[349523566,1737276655287,-200.59747104,0.00024087,12]
[349523567,1737276655297,-174.06237086,0.00024087,14]
[349523568,1737276655307,-500.0,0.00024087,14]
[349523569,1737276655316,-500.0,0.00024087,2]
[349523570,1737276655326,-150.31408277,0.00024087,14]
[349523571,1737276655335,-299.82,0.00024087,14]
[349523572,1737276655344,-500.0,0.00024087,14]
[349523573,1737276655354,-500.0,0.00024087,9]
[349523574,1737276655363,-500.0,0.00024087,9]
[349523575,1737276655372,-179.22,0.0002409,2]
[349523576,1737276655382,-195.2842,0.000241,2]
[349523577,1737276655393,-195.2842,0.000241,2]
[349523578,1737276655404,-160.0,0.00024108,120]
[349523579,1737276655414,-160.0,0.00024109,120]
[349523580,1737276655424,-174.915575,0.00024109,7]
[349523581,1737276655434,-174.915575,0.00024109,7]
[349523582,1737276655444,-151.0,0.00024109,7]
[349523583,1737276655454,-1424.38,0.00024109,3]
[349523584,1737276655464,-500.0,0.00024109,3]
[349523585,1737276655474,-500.0,0.00024109,3]
[349523586,1737276655483,-814.87,0.00024109,3]
[349523587,1737276655493,-504.56,0.00024109,3]
[349523588,1737276655502,-500.0,0.00024109,3]
[349523589,1737276655512,-500.0,0.00024109,3]
[349523590,1737276655525,-8636.63,0.00024109,3]
[349523591,1737276655535,-510.91,0.00024109,3]
[349523592,1737276655546,-528.29,0.00024109,3]
[349523593,1737276655555,-500.0,0.00024109,2]
[349523594,1737276655565,-3622.64,0.00024109,3]
[349523595,1737276655575,-1968.82,0.00024109,3]
[349523596,1737276655585,-19113.93,0.00024109,3]
[349523597,1737276655594,-897.77,0.00024109,3]
[349523598,1737276655603,-1004.02,0.00024109,3]
[349523599,1737276655613,-500.0,0.00024109,3]
[349523600,1737276655623,-549.97,0.00024109,3]
[349523601,1737276655633,-792.3,0.00024109,3]
[349523602,1737276655643,-13109.04,0.00024109,3]
[349523603,1737276655653,-1398.85,0.00024109,3]
[349523604,1737276655663,-585.24,0.00024109,3]
[349523605,1737276655673,-793.92,0.00024109,3]
[349523606,1737276655683,-1699.44,0.00024109,3]
[349523607,1737276655693,-4420.41,0.00024109,3]
[349523608,1737276655703,-7007.89,0.00024109,3]
[349523609,1737276655713,-609.18,0.00024109,3]
[349523610,1737276655723,-654.3,0.00024109,3]
[349523611,1737276655732,-500.0,0.00024109,3]
[349523612,1737276655741,-2037.63,0.00024109,3]
[349523613,1737276655751,-517.3,0.00024109,3]
[349523614,1737276655760,-500.0,0.00024109,3]
[349523615,1737276655771,-1493.86,0.00024109,3]
[349523616,1737276655782,-1252.86,0.00024109,3]
[349523617,1737276655791,-1518.29,0.00024109,3]
[349523618,1737276655801,-151.0,0.0002411,15]
[349523619,1737276655810,-174.915575,0.00024166,7]
[349523620,1737276655819,-174.915575,0.00024166,7]
[349523621,1737276655828,-174.915575,0.00024166,7]
[349523622,1737276655838,-174.915575,0.00024166,7]
[349523623,1737276655847,-174.915575,0.00024166,7]
[349523624,1737276655857,-174.915581,0.00024166,7]
[349523625,1737276655866,-500.0,0.00024173,2]
[349523626,1737276655876,-500.0,0.00024173,2]
[349523627,1737276655885,-500.0,0.00024173,2]
[349523628,1737276655895,-500.0,0.00024173,2]
[349523629,1737276655905,-500.0,0.00024173,2]
[349523630,1737276655914,-520.47638397,0.00024173,2]
[349523631,1737276655924,-500.0,0.00024173,2]
[349523632,1737276655933,-151.0430053,0.00024173,2]
[349523633,1737276655943,-151.0,0.00024173,7]
[349523634,1737276655952,-3237093.88678222,0.00024185,61]
[349523635,1737276656023,-295543.195725,0.00024185,61]
[349523636,1737276656177,-328.50509571,0.00022105,2]
[349523637,1737276690764,160.0,0.00023467,120]
[349523642,1737276811319,160.0,0.00023188,120]
[349523644,1737276870769,160.0,0.00023684,120]
[349523645,1737276930778,160.0,0.00023322,120]
[349523648,1737276990909,160.0,0.00023016,120]
[349523655,1737277350787,160.0,0.00023063,120]
[349523656,1737277443552,1198.0,0.00024,120]
[349523657,1737277470921,160.0,0.00023635,120]
[349523659,1737277582693,5766.31232313,0.000237,120]
[349523660,1737277590742,160.0,0.00023532,120]
[349523661,1737277650765,160.0,0.00023271,120]
[349523662,1737277711276,160.0,0.00023922,120]
[349523664,1737277830663,160.0,0.00023869,120]
[349523676,1737277831832,5357.36,0.00021,30]
[349523701,1737277832412,-363.914402,0.00019441,2]
[349523703,1737277832422,-62.265598,0.00020237,2]
[349523705,1737277832434,-277.96954574,0.00020237,2]
[349523715,1737277832527,-305.13298768,0.00020237,2]
[349523718,1737277832540,-3524.88951931,0.00020237,2]
[349523720,1737277832560,-500.0,0.00020337,2]
[349523722,1737277832573,-169.68950187,0.00020814,2]
[349523724,1737277832584,-25.52417202,0.00020913,2]
[349523729,1737277832628,-274.47582798,0.00020913,2]
[349523731,1737277832639,-24880.0,0.00020914,2]
[349523733,1737277832650,-174.111,0.00020914,2]
[349523735,1737277832662,-260.2506721,0.00020997,2]
[349523737,1737277832672,-1076.0,0.00021046,2]
[349523739,1737277832682,-802.24013424,0.000219,2]
[349523741,1737277832692,-500.0,0.00021917,3]
[349523743,1737277832702,-500.0,0.00021917,3]
[349523745,1737277832712,-301.19,0.00021917,3]
[349523747,1737277832723,-500.0,0.00021917,3]
[349523749,1737277832733,-500.0,0.00021917,3]
[349523750,1737277832743,-500.0,0.00021917,3]
[349523751,1737277832754,-586.6,0.00021917,3]
[349523752,1737277832764,-500.0,0.00021917,3]
[349523753,1737277832775,-500.0,0.00021917,3]
[349523754,1737277832786,-500.0,0.00021917,3]
[349523755,1737277832799,-500.0,0.00021917,2]
[349523756,1737277832810,-500.0,0.00021917,3]
[349523757,1737277832821,-500.0,0.00021917,3]
[349523758,1737277832831,-574.24,0.00021917,3]
[349523759,1737277832842,-2521.46,0.00021917,3]
[349523760,1737277832852,-500.0,0.00021917,3]
[349523761,1737277832862,-3881.2,0.00021917,3]
[349523762,1737277832872,-433.32,0.00021917,3]
[349523763,1737277832882,-500.0,0.00021917,3]
[349523764,1737277832892,-500.0,0.00021917,3]
[349523765,1737277832902,-312.27,0.00021917,3]
[349523766,1737277832912,-500.0,0.00021917,3]
[349523767,1737277832922,-500.0,0.00021917,3]
[349523768,1737277832932,-500.0,0.00021917,3]
[349523769,1737277832941,-500.0,0.00021917,3]
[349523770,1737277832951,-1289.29,0.00021917,3]
[349523771,1737277832963,-500.0,0.00021917,3]
[349523772,1737277832974,-516.5,0.00021917,3]
[349523773,1737277832985,-2043.97,0.00021917,3]
[349523774,1737277832996,-500.0,0.00021917,3]
[349523775,1737277833007,-256.07,0.00021917,3]
[349523776,1737277833017,-500.0,0.00021917,3]
[349523777,1737277833029,-5637.77,0.00021917,3]
[349523778,1737277833041,-500.0,0.00021917,3]
[349523779,1737277833057,-500.0,0.00021917,3]
[349523780,1737277833067,-500.0,0.00021917,3]
[349523781,1737277833077,-500.0,0.00021917,3]
[349523782,1737277833087,-500.0,0.00021917,3]
[349523783,1737277833098,-594.31,0.00021917,3]
[349523784,1737277833109,-500.0,0.00021917,3]
[349523785,1737277833120,-500.0,0.00021917,3]
[349523786,1737277833130,-500.0,0.00021917,3]
[349523787,1737277833145,-338.51776915,0.00021917,3]
[349523788,1737277833156,-500.0,0.00021917,3]
[349523789,1737277833166,-1056.6,0.00021917,3]
[349523790,1737277833177,-500.0,0.00021917,3]
[349523791,1737277833188,-500.0,0.00021917,3]
[349523792,1737277833198,-500.0,0.00022054,3]
[349523793,1737277833209,-500.0,0.00022054,3]
[349523794,1737277833219,-500.0,0.00022054,3]
[349523795,1737277833230,-500.0,0.00022054,3]
[349523796,1737277833241,-500.0,0.00022054,3]
[349523797,1737277833251,-292.33,0.00022054,3]
[349523798,1737277833262,-500.0,0.00022054,3]
[349523799,1737277833274,-500.0,0.00022054,2]
[349523800,1737277833284,-500.0,0.00022054,3]
[349523801,1737277833294,-500.0,0.00022054,3]
[349523802,1737277833308,-574.24,0.00022054,3]
[349523803,1737277833319,-2521.46,0.00022054,3]
[349523804,1737277833330,-500.0,0.00022054,3]
[349523805,1737277833340,-3881.2,0.00022054,3]
[349523806,1737277833350,-500.0,0.00022054,3]
[349523807,1737277833360,-500.0,0.00022054,3]
[349523808,1737277833370,-500.0,0.00022054,3]
[349523809,1737277833380,-500.0,0.00022054,3]
[349523810,1737277833391,-500.0,0.00022054,3]
[349523811,1737277833402,-500.0,0.00022054,3]
[349523812,1737277833412,-1289.29,0.00022054,3]
[349523813,1737277833422,-500.0,0.00022054,3]
[349523814,1737277833433,-516.5,0.00022054,3]
[349523815,1737277833443,-2043.97,0.00022054,3]
[349523816,1737277833454,-500.0,0.00022054,3]
[349523817,1737277833464,-500.0,0.00022054,3]
[349523818,1737277833474,-5637.77,0.00022054,3]
[349523819,1737277833484,-500.0,0.00022054,3]
[349523820,1737277833495,-500.0,0.00022054,3]
[349523821,1737277833505,-594.31,0.00022054,3]
[349523822,1737277833515,-500.0,0.00022054,3]
[349523823,1737277833529,-500.0,0.00022054,3]
[349523824,1737277833539,-500.0,0.00022054,3]
[349523825,1737277833555,-1056.6,0.00022054,3]
[349523826,1737277833569,-500.0,0.00022054,3]
[349523827,1737277833580,-500.0,0.00022191,3]
[349523828,1737277833590,-500.0,0.00022191,3]
[349523829,1737277833600,-500.0,0.00022191,3]
[349523830,1737277833610,-500.0,0.00022191,3]
[349523831,1737277833621,-500.0,0.00022191,3]
[349523832,1737277833631,-500.0,0.00022191,3]
[349523833,1737277833642,-500.0,0.00022191,2]
[349523834,1737277833653,-500.0,0.00022191,3]
[349523835,1737277833664,-500.0,0.00022191,3]
[349523836,1737277833674,-574.24,0.00022191,3]
[349523837,1737277833684,-2521.46,0.00022191,3]
[349523838,1737277833694,-500.0,0.00022191,3]
[349523839,1737277833703,-3881.2,0.00022191,3]
[349523840,1737277833713,-500.0,0.00022191,3]
[349523841,1737277833723,-500.0,0.00022191,3]
[349523842,1737277833733,-500.0,0.00022191,3]
[349523843,1737277833742,-500.0,0.00022191,3]
[349523844,1737277833752,-500.0,0.00022191,3]
[349523845,1737277833761,-500.0,0.00022191,3]
[349523846,1737277833771,-1289.29,0.00022191,3]
[349523847,1737277833781,-500.0,0.00022191,3]
[349523848,1737277833792,-516.5,0.00022191,3]
[349523849,1737277833807,-2043.97,0.00022191,3]
[349523850,1737277833817,-500.0,0.00022191,3]
[349523851,1737277833828,-500.0,0.00022191,3]
[349523852,1737277833838,-5637.77,0.00022191,3]
[349523853,1737277833848,-500.0,0.00022191,3]
[349523854,1737277833859,-500.0,0.00022191,3]
[349523855,1737277833869,-594.31,0.00022191,3]
[349523856,1737277833878,-500.0,0.00022191,3]
[349523857,1737277833888,-500.0,0.00022191,3]
[349523858,1737277833898,-500.0,0.00022191,3]
[349523859,1737277833908,-1056.6,0.00022191,3]
[349523860,1737277833918,-500.0,0.00022191,3]
[349523861,1737277833929,-500.0,0.00022328,3]
[349523862,1737277833938,-500.0,0.00022328,3]
[349523863,1737277833949,-500.0,0.00022328,3]
[349523864,1737277834100,-500.0,0.00022328,3]
[349523865,1737277834112,-500.0,0.00022328,3]
[349523866,1737277834123,-500.0,0.00022328,3]
[349523867,1737277834134,-500.0,0.00022328,2]
[349523868,1737277834144,-500.0,0.00022328,3]
[349523869,1737277834154,-209.62,0.00022328,3]
[349523870,1737277834165,-574.24,0.00022328,3]
[349523871,1737277834175,-2521.46,0.00022328,3]
[349523872,1737277834186,-500.0,0.00022328,3]
[349523873,1737277834196,-3881.2,0.00022328,3]
[349523874,1737277834207,-500.0,0.00022328,3]
[349523875,1737277834217,-500.0,0.00022328,3]
[349523876,1737277834227,-500.0,0.00022328,3]
[349523877,1737277834237,-500.0,0.00022328,3]
[349523878,1737277834248,-500.0,0.00022328,3]
[349523879,1737277834258,-500.0,0.00022328,3]
[349523880,1737277834268,-1289.29,0.00022328,3]
[349523881,1737277834279,-500.0,0.00022328,3]
[349523882,1737277834288,-516.5,0.00022328,3]
[349523883,1737277834302,-2043.97,0.00022328,3]
[349523884,1737277834312,-500.0,0.00022328,3]
[349523885,1737277834323,-500.0,0.00022328,3]
[349523886,1737277834334,-5637.77,0.00022328,3]
[349523887,1737277834345,-500.0,0.00022328,3]
[349523888,1737277834355,-500.0,0.00022328,3]
[349523889,1737277834366,-594.31,0.00022328,3]